bitfinex/quotes_BTCUSD_20241201
["timestamp","ask_amount","ask_price","bid_price","bid_amount"]
[1733012251939,0.40897281,96649.0,96648.0,0.0108638]
[1733012252141,0.40897281,96649.0,96640.0,0.0008637]
[1733012252142,0.359751,96641.0,96640.0,0.0008637]
[1733012252351,0.61259621,96641.0,96640.0,0.0008637]
[1733012253632,0.61259621,96641.0,96640.0,0.0018637]
[1733012254648,0.61359621,96641.0,96640.0,0.0018637]
[1733012255053,0.62327807,96641.0,96640.0,0.0018637]
[1733012255467,0.62327476,96641.0,96640.0,0.0018637]
[1733012259210,0.63438337,96641.0,96640.0,0.0018637]
[1733012260467,0.35633237,96641.0,96640.0,0.0018637]
[1733012260683,0.26352376,96641.0,96640.0,0.0018637]
[1733012260963,0.25384521,96641.0,96640.0,0.0018637]
[1733012261186,0.001,96641.0,96640.0,0.00603692]
[1733012261602,0.001,96641.0,96640.0,0.00856364]
[1733012262281,0.001,96641.0,96640.0,0.00756364]
[1733012262708,0.001,96641.0,96640.0,0.06546364]
[1733012262917,0.0017268,96660.0,96640.0,0.05646364]
[1733012263131,0.0017268,96660.0,96640.0,0.05946364]
[1733012263336,0.001,96641.0,96640.0,0.06846364]
[1733012263563,0.0017268,96660.0,96640.0,0.05646364]
[1733012263774,0.001,96641.0,96640.0,0.06546364]
[1733012264397,0.001,96641.0,96640.0,0.06846364]
[1733012265257,0.001,96641.0,96640.0,0.05946364]
[1733012265466,0.08291101,96660.0,96640.0,0.05946364]
[1733012266293,0.08291101,96660.0,96640.0,0.06146364]
[1733012266702,0.08291101,96660.0,96640.0,0.06246364]
[1733012267106,0.08291101,96660.0,96640.0,0.05646364]
[1733012267384,0.08291101,96660.0,96640.0,0.05946364]
[1733012268010,0.08291101,96660.0,96647.0,0.03]
[1733012268214,0.0821268,96652.0,96648.0,0.00417322]
[1733012268416,0.0821268,96652.0,96648.0,0.00668321]
[1733012269233,0.0821268,96652.0,96648.0,0.00250999]
[1733012269436,0.0821268,96652.0,96648.0,0.00668321]
[1733012269585,0.0821268,96652.0,96648.0,0.00450999]
[1733012270449,0.2890558,96652.0,96648.0,0.00450999]
[1733012270603,0.2890558,96652.0,96648.0,0.002]
[1733012271009,0.2890548,96652.0,96648.0,0.002]
[1733012271613,0.2890548,96652.0,96645.0,0.00417322]
[1733012271828,0.2890548,96652.0,96648.0,0.002]
[1733012272041,0.2890548,96652.0,96645.0,0.00417322]
[1733012272513,0.20693,96651.0,96648.0,0.002]
[1733012272704,0.15327281,96649.0,96648.0,0.002]
[1733012273123,0.15327281,96649.0,96640.0,0.0008637]
[1733012273124,0.38367281,96649.0,96640.0,0.0008637]
[1733012273332,0.206951,96641.0,96640.0,0.0008637]
[1733012273539,0.30979621,96641.0,96640.0,0.0008637]
[1733012273772,0.39019621,96641.0,96640.0,0.0008637]
[1733012273987,0.39986364,96641.0,96640.0,0.0008637]
[1733012274813,0.54986364,96641.0,96640.0,0.0008637]
[1733012276480,0.55086364,96641.0,96640.0,0.0008637]
[1733012281220,0.55086602,96641.0,96640.0,0.0008637]
[1733012281439,0.54119621,96641.0,96640.0,0.0008637]
[1733012281874,0.55086637,96641.0,96640.0,0.0008637]
[1733012283816,0.60016637,96641.0,96640.0,0.0008637]
[1733012284308,0.61016637,96641.0,96640.0,0.0008637]
[1733012284533,0.63316637,96641.0,96640.0,0.0008637]
[1733012285431,0.64016637,96641.0,96640.0,0.0018637]
[1733012285662,0.63916637,96641.0,96640.0,0.0018637]
[1733012285876,0.64316637,96641.0,96640.0,0.0018637]
[1733012290075,0.27351537,96641.0,96640.0,0.0018637]
[1733012290299,0.26384521,96641.0,96640.0,0.0018637]
[1733012290506,0.11384521,96641.0,96640.0,0.0018637]
[1733012290930,0.011,96641.0,96640.0,0.0018637]
[1733012291152,0.011,96641.0,96640.0,0.0008637]
[1733012291153,0.004,96641.0,96640.0,0.0008637]
[1733012291369,0.005,96641.0,96640.0,0.08639233]
[1733012291602,0.001,96641.0,96640.0,0.08639233]
[1733012292732,0.002,96641.0,96640.0,0.08639233]
[1733012293668,0.0017276,96648.0,96640.0,0.08639233]
[1733012293880,0.10284521,96647.0,96640.0,0.08639233]
[1733012294088,0.10284521,96647.0,96640.0,0.08939233]
[1733012294718,0.10284521,96647.0,96640.0,0.00339233]
[1733012294922,0.30978521,96647.0,96640.0,0.00439233]
[1733012295135,0.30978521,96647.0,96640.0,0.0018637]
[1733012295347,0.51672521,96647.0,96640.0,0.0018637]
[1733012295632,0.59182521,96647.0,96640.0,0.0018637]
[1733012295875,0.59182521,96647.0,96640.0,0.0008637]
[1733012296113,0.20695,96642.0,96640.0,0.0008637]
[1733012296355,0.10284521,96641.0,96640.0,0.0008637]
[1733012297519,0.10384521,96641.0,96640.0,0.0008637]
[1733012297790,0.25284521,96641.0,96640.0,0.0008637]
[1733012298298,0.25284521,96641.0,96640.0,0.0028637]
[1733012299802,0.26385441,96641.0,96640.0,0.0028637]
[1733012300028,0.26585441,96641.0,96640.0,0.0028637]
[1733012300991,0.26585441,96641.0,96640.0,0.0008637]
[1733012301240,0.26585441,96641.0,96640.0,0.0028637]
[1733012301482,0.26385441,96641.0,96640.0,0.0008637]
[1733012301724,0.26685441,96641.0,96640.0,0.0008637]
[1733012302154,0.26485441,96641.0,96640.0,0.0008637]
[1733012302638,0.26585441,96641.0,96640.0,0.0008637]
[1733012302847,0.26785441,96641.0,96640.0,0.0008637]
[1733012303114,0.26585441,96641.0,96640.0,0.0008637]
[1733012303402,0.26785441,96641.0,96640.0,0.0008637]
[1733012303831,0.42938119,96641.0,96640.0,0.0008637]
[1733012304431,0.42738119,96641.0,96640.0,0.0008637]
[1733012304926,0.42538119,96641.0,96640.0,0.0008637]
[1733012305131,0.43238119,96641.0,96640.0,0.0008637]
[1733012305387,0.42838119,96641.0,96640.0,0.0008637]
[1733012305631,0.43338119,96641.0,96640.0,0.0018637]
[1733012306703,0.43738119,96641.0,96640.0,0.0018637]
[1733012308162,0.46256053,96641.0,96640.0,0.0018637]
[1733012310147,0.45673375,96641.0,96640.0,0.0018637]
[1733012310576,0.40953375,96641.0,96640.0,0.0018637]
[1733012310792,0.39403877,96641.0,96640.0,0.0018637]
[1733012310977,0.40553375,96641.0,96640.0,0.0018637]
[1733012311105,0.39403877,96641.0,96640.0,0.0018637]
[1733012311754,0.37635441,96641.0,96640.0,0.0008637]
[1733012311955,0.39403683,96641.0,96640.0,0.0018637]
[1733012312585,0.4095287,96641.0,96640.0,0.0018637]
[1733012312784,0.3975287,96641.0,96640.0,0.0008637]
[1733012313192,0.4055287,96641.0,96640.0,0.0018637]
[1733012314310,0.4095287,96641.0,96640.0,0.0018637]
[1733012314515,0.4015287,96641.0,96640.0,0.0008637]
[1733012314749,0.3975287,96641.0,96640.0,0.0018637]
[1733012314958,0.4045287,96641.0,96640.0,0.0018637]
[1733012315173,0.4045287,96641.0,96640.0,0.0008637]
[1733012315174,0.3260287,96641.0,96640.0,0.0008637]
[1733012315387,0.31653683,96641.0,96640.0,0.0008637]
[1733012315598,0.3320287,96641.0,96640.0,0.0008637]
[1733012316010,0.31653683,96641.0,96640.0,0.0008637]
[1733012316227,0.31053683,96641.0,96640.0,0.0008637]
[1733012316438,0.31653683,96641.0,96640.0,0.0008637]
[1733012317315,0.31253683,96641.0,96640.0,0.0008637]
[1733012317767,0.31653683,96641.0,96640.0,0.0008637]
[1733012321646,0.28353683,96641.0,96640.0,0.0008637]
[1733012321824,0.30653683,96641.0,96640.0,0.0008637]
[1733012322048,0.31653683,96641.0,96640.0,0.0008637]
[1733012322686,0.31253683,96641.0,96640.0,0.0008637]
[1733012322722,0.30253683,96641.0,96640.0,0.0008637]
[1733012322920,0.29653683,96641.0,96640.0,0.0008637]
[1733012323410,0.30653683,96641.0,96640.0,0.0008637]
[1733012324146,0.31053683,96641.0,96640.0,0.0008637]
[1733012324621,0.31453683,96641.0,96640.0,0.0008637]
[1733012325119,0.31053683,96641.0,96640.0,0.0008637]
[1733012325587,0.30353683,96641.0,96640.0,0.0008637]
[1733012326292,0.31353683,96641.0,96640.0,0.0008637]
[1733012327319,0.30953683,96641.0,96640.0,0.0008637]
[1733012327527,0.32803195,96641.0,96640.0,0.0008637]
[1733012327743,0.32203195,96641.0,96640.0,0.0008637]
[1733012327999,0.32403195,96641.0,96640.0,0.0008637]
[1733012328674,0.32603195,96641.0,96640.0,0.0008637]
[1733012328973,0.32503195,96641.0,96640.0,0.0008637]
[1733012329394,0.32203195,96641.0,96640.0,0.0008637]
[1733012329776,0.32503195,96641.0,96640.0,0.0008637]
[1733012330224,0.33003195,96641.0,96640.0,0.0008637]
[1733012330438,0.32503195,96641.0,96640.0,0.0008637]
[1733012330798,0.32903195,96641.0,96640.0,0.0008637]
[1733012331208,0.33403195,96641.0,96640.0,0.0008637]
[1733012331630,0.32203195,96641.0,96640.0,0.0008637]
[1733012331835,0.32903195,96641.0,96640.0,0.0008637]
[1733012332272,0.31903195,96641.0,96640.0,0.0008637]
[1733012332421,0.31603195,96641.0,96640.0,0.0008637]
[1733012332623,0.32603195,96641.0,96640.0,0.0008637]
[1733012332850,0.32903195,96641.0,96640.0,0.0008637]
[1733012333076,0.32503195,96641.0,96640.0,0.0008637]
[1733012333271,0.32203195,96641.0,96640.0,0.0008637]
[1733012333473,0.32603195,96641.0,96640.0,0.0008637]
[1733012333703,0.32203195,96641.0,96640.0,0.0008637]
[1733012334153,0.32603195,96641.0,96640.0,0.0008637]
[1733012334678,0.33003195,96641.0,96640.0,0.0008637]
[1733012334884,0.32903195,96641.0,96640.0,0.0008637]
[1733012335086,0.33303195,96641.0,96640.0,0.0008637]
[1733012335505,0.32303195,96641.0,96640.0,0.0008637]
[1733012335939,0.17303195,96641.0,96640.0,0.1243637]
[1733012336378,0.17303195,96641.0,96640.0,0.12704456]
[1733012336591,0.15003195,96641.0,96640.0,0.12704456]
[1733012336790,0.17303195,96641.0,96640.0,0.12704456]
[1733012336992,0.14203195,96641.0,96640.0,0.12704456]
[1733012337195,0.04118674,96641.0,96640.0,0.12704456]
[1733012337761,0.03818674,96641.0,96640.0,0.12704456]
[1733012338160,0.04018674,96641.0,96640.0,0.12704456]
[1733012338374,0.03818674,96641.0,96640.0,0.12704456]
[1733012338584,0.03618674,96641.0,96640.0,0.12704456]
[1733012339012,0.03718674,96641.0,96640.0,0.12704456]
[1733012339425,0.03618674,96641.0,96640.0,0.12704456]
[1733012339631,0.03818674,96641.0,96640.0,0.12704456]
[1733012339845,0.03618674,96641.0,96640.0,0.12704456]
[1733012340272,0.13903195,96641.0,96640.0,0.00354456]
[1733012340482,0.13903195,96641.0,96640.0,0.00454456]
[1733012340696,0.13903195,96641.0,96640.0,0.0018637]
[1733012340941,0.13903195,96641.0,96640.0,0.0008637]
[1733012341164,0.16203195,96641.0,96640.0,0.0008637]
[1733012341377,0.16203195,96641.0,96640.0,0.0018637]
[1733012342034,0.14653683,96641.0,96640.0,0.0018637]
[1733012342473,0.14653683,96641.0,96640.0,0.0008637]
[1733012342474,0.14654853,96641.0,96640.0,0.0008637]
[1733012342912,0.14754853,96641.0,96640.0,0.0008637]
[1733012343126,0.29654853,96641.0,96640.0,0.0008637]
[1733012343343,0.29954853,96641.0,96640.0,0.0008637]
[1733012343555,0.30354853,96641.0,96640.0,0.0008637]
[1733012346207,0.13054853,96641.0,96640.0,0.0008637]
[1733012346413,0.13054853,96641.0,96640.0,0.00354046]
[1733012346837,0.12654853,96641.0,96640.0,0.00354046]
[1733012347034,0.12854853,96641.0,96640.0,0.00354046]
[1733012347261,0.12854853,96641.0,96640.0,0.0008637]
[1733012347970,0.11885441,96641.0,96640.0,0.0008637]
[1733012348256,0.11585441,96641.0,96640.0,0.0008637]
[1733012348499,0.11785441,96641.0,96640.0,0.0008637]
[1733012348759,0.004,96641.0,96640.0,0.0008637]
[1733012348998,0.002,96641.0,96640.0,0.0008637]
[1733012349237,0.003,96641.0,96640.0,0.00333455]
[1733012349470,0.001,96641.0,96640.0,0.00750777]
[1733012349706,0.01142172,96649.0,96640.0,0.05860777]
[1733012349963,0.01286035,96648.0,96643.0,0.0808]
[1733012350198,0.0017276,96648.0,96643.0,0.1299]
[1733012350439,0.0017276,96648.0,96644.0,0.00228788]
[1733012350669,0.0017276,96648.0,96645.0,0.13407322]
[1733012350890,0.0027276,96648.0,96646.0,0.0808]
[1733012351112,0.0027276,96648.0,96646.0,0.0830866]
[1733012351877,0.0047276,96648.0,96646.0,0.0830866]
[1733012352319,0.0017276,96648.0,96646.0,0.0830866]
[1733012352545,0.0027276,96648.0,96646.0,0.0830866]
[1733012352797,0.0037276,96648.0,96647.0,0.00417322]
[1733012352980,0.0037276,96648.0,96647.0,0.00645609]
[1733012353220,0.0047276,96648.0,96647.0,0.13635609]
[1733012353917,0.0037276,96648.0,96647.0,0.13635609]
[1733012354421,0.0047276,96648.0,96647.0,0.13635609]
[1733012354837,0.0027276,96648.0,96647.0,0.13635609]
[1733012355252,0.0047276,96648.0,96647.0,0.13635609]
[1733012355608,0.0027276,96648.0,96647.0,0.13635609]
[1733012368041,0.10557281,96648.0,96647.0,0.00228287]
[1733012368248,0.10557281,96648.0,96641.0,0.00417322]
[1733012368703,0.10557281,96648.0,96642.0,0.00227933]
[1733012368912,0.0027276,96648.0,96647.0,0.00417322]
[1733012369322,0.0017276,96648.0,96647.0,0.00644989]
[1733012370660,0.0027276,96648.0,96647.0,0.00644989]
[1733012371092,0.0017276,96648.0,96647.0,0.00644989]
[1733012371321,0.0017276,96648.0,96647.0,0.13334989]
[1733012371528,0.0027276,96648.0,96647.0,0.13334989]
[1733012378703,0.0027276,96648.0,96647.0,0.13507749]
[1733012381252,0.0017276,96648.0,96647.0,0.13507749]
[1733012381500,0.0017276,96648.0,96647.0,0.13607749]
[1733012381707,0.0017276,96648.0,96647.0,0.14007749]
[1733012381925,0.0017276,96648.0,96647.0,0.13507749]
[1733012382153,0.0017276,96648.0,96647.0,0.13707749]
[1733012382382,0.0017276,96648.0,96647.0,0.14207749]
[1733012382771,0.0017276,96648.0,96647.0,0.13707749]
[1733012382976,0.0017276,96648.0,96647.0,0.14207749]
[1733012384165,0.0017276,96648.0,96647.0,0.13507749]
[1733012384528,0.0017276,96648.0,96647.0,0.14207749]
[1733012384764,0.0017276,96648.0,96647.0,0.13707749]
[1733012384960,0.0017276,96648.0,96647.0,0.14107749]
[1733012385401,0.0017276,96648.0,96647.0,0.13707749]
[1733012385616,0.0017276,96648.0,96647.0,0.14307749]
[1733012386031,0.0017276,96648.0,96647.0,0.13707749]
[1733012387264,0.0017276,96648.0,96647.0,0.14307749]
[1733012395553,0.0017276,96648.0,96647.0,0.01617749]
[1733012396077,0.0017276,96648.0,96647.0,0.01800872]
[1733012396309,0.0017276,96648.0,96647.0,0.14727749]
[1733012397261,0.0017276,96648.0,96647.0,0.14910865]
[1733012398261,0.0017276,96648.0,96647.0,0.14727749]
[1733012405869,0.0017276,96648.0,96647.0,0.2501227]
[1733012406115,0.0017276,96648.0,96647.0,0.4101227]
[1733012406371,0.0017276,96648.0,96647.0,0.44199932]
[1733012406883,0.0017276,96648.0,96647.0,0.43999932]
[1733012407164,0.0017276,96648.0,96647.0,0.43599932]
[1733012407636,0.0017276,96648.0,96647.0,0.43399932]
[1733012407864,0.0017276,96648.0,96647.0,0.44299932]
[1733012408122,0.0027276,96648.0,96647.0,0.45199932]
[1733012408605,0.0027276,96648.0,96647.0,0.4201227]
[1733012409284,0.0027276,96648.0,96647.0,0.43129088]
[1733012410176,0.0027276,96648.0,96647.0,0.8407111]
[1733012410821,0.0027276,96648.0,96647.0,0.43129088]
[1733012413375,0.0027276,96648.0,96647.0,0.16844567]
[1733012413590,0.0027276,96648.0,96647.0,0.15910857]
[1733012414467,0.0017276,96648.0,96647.0,0.15010857]
[1733012414699,0.0017276,96648.0,96647.0,0.14827749]
[1733012414917,0.0017276,96648.0,96647.0,0.15727749]
[1733012415138,0.0017276,96648.0,96647.0,0.15010857]
[1733012415355,0.0017276,96648.0,96647.0,0.15910857]
[1733012415563,0.0017276,96648.0,96647.0,0.15010857]
[1733012416002,0.0017276,96648.0,96647.0,0.15810857]
[1733012416630,0.0017276,96648.0,96647.0,0.14110857]
[1733012416831,0.0017276,96648.0,96647.0,0.15010857]
[1733012417053,0.0017276,96648.0,96647.0,0.15910857]
[1733012417737,0.0017276,96648.0,96647.0,0.41195378]
[1733012417947,0.0017276,96648.0,96647.0,0.4101227]
[1733012419244,0.0017276,96648.0,96647.0,0.4201227]
[1733012421302,0.0017276,96648.0,96647.0,0.7305327]
[1733012421972,0.0017276,96648.0,96647.0,0.7205327]
[1733012422216,0.0017276,96648.0,96647.0,0.71635948]
[1733012422436,0.0017276,96648.0,96647.0,0.7205327]
[1733012428495,0.0247276,96648.0,96647.0,0.7205327]
[1733012432052,0.0247276,96648.0,96647.0,0.72209144]
[1733012432496,0.0017276,96648.0,96647.0,0.72209144]
[1733012438526,0.0017276,96648.0,96647.0,0.73209144]
[1733012439322,0.00146661,96648.0,96647.0,0.73209144]
[1733012439528,0.00140112,96648.0,96647.0,0.73209144]
[1733012441015,0.00140112,96648.0,96647.0,0.76394779]
[1733012441954,0.00140112,96648.0,96647.0,0.73209144]
[1733012442169,0.00140112,96648.0,96647.0,0.76395672]
[1733012443188,0.00140112,96648.0,96647.0,0.78458377]
[1733012457511,0.00140112,96648.0,96647.0,0.79458377]
[1733012471100,0.00140112,96648.0,96647.0,0.78558377]
[1733012471321,0.00140112,96648.0,96647.0,0.79058377]
[1733012471984,0.00140112,96648.0,96647.0,0.78558377]
[1733012472199,0.00140112,96648.0,96647.0,0.78658377]
[1733012472691,0.00140112,96648.0,96647.0,0.77758377]
[1733012472893,0.00140112,96648.0,96647.0,0.78658377]
[1733012473081,0.00140112,96648.0,96647.0,0.77758377]
[1733012473397,0.00140112,96648.0,96647.0,0.77958377]
[1733012474238,0.0017276,96649.0,96648.0,0.50940922]
[1733012474465,0.0017276,96649.0,96648.0,0.95451971]
[1733012474901,0.0017276,96649.0,96648.0,0.9583074]
[1733012475728,0.0017276,96649.0,96648.0,0.9603074]
[1733012477038,0.0017276,96649.0,96648.0,0.9583074]
[1733012477451,0.0017276,96649.0,96648.0,0.9643074]
[1733012477674,0.0017276,96649.0,96648.0,0.9663074]
[1733012481308,0.0017276,96649.0,96648.0,0.9680352]
[1733012486075,0.0017276,96649.0,96648.0,0.6806992]
[1733012486490,0.0017276,96649.0,96648.0,0.98325888]
[1733012486724,0.0017276,96649.0,96648.0,0.99325888]
[1733012488747,0.0017276,96649.0,96648.0,0.6806992]
[1733012492518,0.0017276,96649.0,96648.0,0.94542248]
[1733012492754,0.0017276,96649.0,96648.0,0.6127992]
[1733012493417,0.00159627,96649.0,96648.0,0.6107992]
[1733012493638,0.00159627,96649.0,96648.0,0.6207992]
[1733012493861,0.00159627,96649.0,96648.0,0.6127992]
[1733012494289,0.00159627,96649.0,96648.0,0.57893392]
[1733012494502,0.07889627,96649.0,96648.0,0.57293392]
[1733012494968,0.07889627,96649.0,96648.0,0.58193392]
[1733012495205,0.07889627,96649.0,96648.0,0.57293392]
[1733012495441,0.07889627,96649.0,96648.0,0.58193392]
[1733012496745,0.07889627,96649.0,96648.0,0.58993392]
[1733012499343,0.00159627,96649.0,96648.0,0.58993392]
[1733012499791,0.00159627,96649.0,96648.0,0.58193392]
[1733012500016,0.00159627,96649.0,96648.0,0.58693392]
[1733012500509,0.00159627,96649.0,96648.0,0.58193392]
[1733012501392,0.00159627,96649.0,96648.0,0.57293392]
[1733012501591,0.00159627,96649.0,96648.0,0.58193392]
[1733012501804,0.00159627,96649.0,96648.0,0.57293392]
[1733012502034,0.00159627,96649.0,96648.0,0.63163392]
[1733012502238,0.00159627,96649.0,96648.0,0.63363392]
[1733012502865,0.00159627,96649.0,96648.0,0.63163392]
[1733012503292,0.00159627,96649.0,96648.0,0.63763392]
[1733012503538,0.00159627,96649.0,96648.0,0.63863392]
[1733012504026,0.00159627,96649.0,96648.0,0.63763392]
[1733012504255,0.00159627,96649.0,96648.0,0.58893392]
[1733012504485,0.00159627,96649.0,96648.0,0.59093392]
[1733012504709,0.00159627,96649.0,96648.0,0.58093392]
[1733012505466,0.00159627,96649.0,96648.0,0.99108372]
[1733012505749,0.00159627,96649.0,96648.0,0.58093392]
[1733012506232,0.00159627,96649.0,96648.0,0.98305495]
[1733012506481,0.00159627,96649.0,96648.0,0.57693392]
[1733012506704,0.00159627,96649.0,96648.0,0.57793392]
[1733012507174,0.00159627,96649.0,96648.0,0.57693392]
[1733012507398,0.00159627,96649.0,96648.0,0.58093392]
[1733012507671,0.00159627,96649.0,96648.0,0.57693392]
[1733012507919,0.00159627,96649.0,96648.0,0.58593392]
[1733012508660,0.00159627,96649.0,96648.0,0.57693392]
[1733012509332,0.00159627,96649.0,96648.0,0.57293392]
[1733012509588,0.00159627,96649.0,96648.0,0.58893392]
[1733012510102,0.00159627,96649.0,96648.0,0.58193392]
[1733012510580,0.00159627,96649.0,96648.0,0.58893392]
[1733012518584,0.00159627,96649.0,96648.0,0.43893392]
[1733012521233,0.00159627,96649.0,96648.0,0.33608871]
[1733012523713,0.13229627,96649.0,96648.0,0.33608871]
[1733012526598,0.15529627,96649.0,96648.0,0.33191549]
[1733012527591,0.15529627,96649.0,96648.0,0.32291549]
[1733012527819,0.15529627,96649.0,96648.0,0.31591549]
[1733012528053,0.15529627,96649.0,96648.0,0.32991549]
[1733012543537,0.02459627,96649.0,96648.0,0.32991549]
[1733012543742,0.00159627,96649.0,96648.0,0.33408871]
[1733012544632,0.00159627,96649.0,96648.0,0.32908871]
[1733012544839,0.00159627,96649.0,96648.0,0.32008871]
[1733012545044,0.00159627,96649.0,96648.0,0.41638871]
[1733012545458,0.00159627,96649.0,96648.0,0.56773392]
[1733012545922,0.00159627,96649.0,96648.0,0.71773392]
[1733012546361,0.00159627,96649.0,96648.0,0.71459696]
[1733012546573,0.00159627,96649.0,96648.0,0.72059696]
[1733012546808,0.00159627,96649.0,96648.0,0.72959696]
[1733012547054,0.00159627,96649.0,96648.0,0.72059696]
[1733012547297,0.00159627,96649.0,96648.0,0.72359696]
[1733012547575,0.00159627,96649.0,96648.0,0.72859696]
[1733012549401,0.00159627,96649.0,96648.0,0.72359696]
[1733012549615,0.00159627,96649.0,96648.0,0.71459696]
[1733012549846,0.00159627,96649.0,96648.0,0.71759696]
[1733012550067,0.00159627,96649.0,96648.0,0.71459696]
[1733012550479,0.00159627,96649.0,96648.0,0.71759696]
[1733012552603,0.00159627,96649.0,96648.0,0.71459696]
[1733012553024,0.00159627,96649.0,96648.0,0.71759696]
[1733012553232,0.00159627,96649.0,96648.0,0.71459696]
[1733012553451,0.00159627,96649.0,96648.0,0.71559696]
[1733012554316,0.00159627,96649.0,96648.0,0.71459696]
[1733012554533,0.00159627,96649.0,96648.0,0.71759696]
[1733012555660,0.00159627,96649.0,96648.0,0.58379696]
[1733012556098,0.00159627,96649.0,96648.0,0.59879696]
[1733012556330,0.00159627,96649.0,96648.0,0.33508871]
[1733012556538,0.02459627,96649.0,96648.0,0.32908871]
[1733012556766,0.02459627,96649.0,96648.0,0.32008871]
[1733012556980,0.02459627,96649.0,96648.0,0.32608871]
[1733012557184,0.02459627,96649.0,96648.0,0.33508871]
[1733012558888,0.02459627,96649.0,96648.0,0.32008871]
[1733012559120,0.02459627,96649.0,96648.0,0.33508871]
[1733012562090,0.02459627,96649.0,96648.0,0.32908871]
[1733012562508,0.02459627,96649.0,96648.0,0.32008871]
[1733012562719,0.02459627,96649.0,96648.0,0.32708871]
[1733012562925,0.02459627,96649.0,96648.0,0.33608871]
[1733012564652,0.02459627,96649.0,96648.0,0.43893392]
[1733012564653,0.00159627,96649.0,96648.0,0.43893392]
[1733012565086,0.00159627,96649.0,96648.0,0.48753392]
[1733012565716,0.00159627,96649.0,96648.0,0.47153392]
[1733012566003,0.00159627,96649.0,96648.0,0.48853392]
[1733012569658,0.00159627,96649.0,96648.0,0.48053392]
[1733012570290,0.00159627,96649.0,96648.0,0.47153392]
[1733012570720,0.00159627,96649.0,96648.0,0.47253392]
[1733012573130,0.00159627,96649.0,96648.0,0.47153392]
[1733012573340,0.00159627,96649.0,96648.0,0.47653392]
[1733012573891,0.00159627,96649.0,96648.0,0.47253392]
[1733012574120,0.00159627,96649.0,96648.0,0.48153392]
[1733012574347,0.00159627,96649.0,96648.0,0.47253392]
[1733012574818,0.00159627,96649.0,96648.0,0.47153392]
[1733012575035,0.00159627,96649.0,96648.0,0.47253392]
[1733012575495,0.00159627,96649.0,96648.0,0.47153392]
[1733012575717,0.00159627,96649.0,96648.0,0.48053392]
[1733012575949,0.00159627,96649.0,96648.0,0.47553392]
[1733012576394,0.00159627,96649.0,96648.0,0.48453392]
[1733012576616,0.00159627,96649.0,96648.0,0.47153392]
[1733012576877,0.00159627,96649.0,96648.0,0.48453392]
[1733012577385,0.00159627,96649.0,96648.0,0.47553392]
[1733012577612,0.00159627,96649.0,96648.0,0.48453392]
[1733012578036,0.00159627,96649.0,96648.0,0.48053392]
[1733012578477,0.00159627,96649.0,96648.0,0.4317607]
[1733012578687,0.00159627,96649.0,96648.0,0.33308871]
[1733012579131,0.00159627,96649.0,96648.0,0.32408871]
[1733012579617,0.00159627,96649.0,96648.0,0.32608871]
[1733012579850,0.00159627,96649.0,96648.0,0.32408871]
[1733012580334,0.00159627,96649.0,96648.0,0.33308871]
[1733012580560,0.00159627,96649.0,96648.0,0.32408871]
[1733012581448,0.10459627,96649.0,96648.0,0.32891549]
[1733012581670,0.10459627,96649.0,96648.0,0.32908871]
[1733012581910,0.10459627,96649.0,96648.0,0.32491549]
[1733012582133,0.10459627,96649.0,96648.0,0.33191549]
[1733012582612,0.10459627,96649.0,96648.0,0.32491549]
[1733012582836,0.08159627,96649.0,96648.0,0.32091549]
[1733012583066,0.08159627,96649.0,96648.0,0.32991549]
[1733012583067,0.13079627,96649.0,96648.0,0.32991549]
[1733012583295,0.13079627,96649.0,96648.0,0.32091549]
[1733012583732,0.13079627,96649.0,96648.0,0.32991549]
[1733012591863,0.13079627,96649.0,96648.0,0.32491549]
[1733012593404,0.13079627,96649.0,96648.0,0.31591549]
[1733012593867,0.13079627,96649.0,96648.0,0.31691549]
[1733012594079,0.13079627,96649.0,96648.0,0.31591549]
[1733012594507,0.13079627,96649.0,96648.0,0.31691549]
[1733012595157,0.13079627,96649.0,96648.0,0.31591549]
[1733012595582,0.13079627,96649.0,96648.0,0.31691549]
[1733012599653,0.25664148,96649.0,96648.0,0.31691549]
[1733012613333,0.41246826,96649.0,96648.0,0.00651549]
[1733012613753,0.41246826,96649.0,96648.0,0.0027278]
[1733012614409,0.41246826,96649.0,96648.0,0.0017278]
[1733012614619,0.41346826,96649.0,96648.0,0.0017278]
[1733012615721,0.4331628,96649.0,96648.0,0.0017278]
[1733012618003,0.42346826,96649.0,96648.0,0.0017278]
[1733012618241,0.43316031,96649.0,96648.0,0.0017278]
[1733012621579,0.43216031,96649.0,96648.0,0.0017278]
[1733012621837,0.43316031,96649.0,96648.0,0.0017278]
[1733012622082,0.43416031,96649.0,96648.0,0.0017278]
[1733012622320,0.43316031,96649.0,96648.0,0.0017278]
[1733012622580,0.43416031,96649.0,96648.0,0.0017278]
[1733012623101,0.43316031,96649.0,96648.0,0.0017278]
[1733012623808,0.43216031,96649.0,96648.0,0.0017278]
[1733012624047,0.43416031,96649.0,96648.0,0.0017278]
[1733012624512,0.43216031,96649.0,96648.0,0.0017278]
[1733012624748,0.43316031,96649.0,96648.0,0.0017278]
[1733012624978,0.43416031,96649.0,96648.0,0.0017278]
[1733012627653,0.42833353,96649.0,96648.0,0.0017278]
[1733012628370,0.43416031,96649.0,96648.0,0.0017278]
[1733012628609,0.42446826,96649.0,96648.0,0.0017278]
[1733012628834,0.41864148,96649.0,96648.0,0.0017278]
[1733012629046,0.42446826,96649.0,96648.0,0.0017278]
[1733012629260,0.41864148,96649.0,96648.0,0.0017278]
[1733012629693,0.27944148,96649.0,96648.0,0.0017278]
[1733012630339,0.27844148,96649.0,96648.0,0.0017278]
[1733012630554,0.27944148,96649.0,96648.0,0.0017278]
[1733012630808,0.10644148,96649.0,96648.0,0.0017278]
[1733012631013,0.00259627,96649.0,96648.0,0.0017278]
[1733012631281,0.00159627,96649.0,96648.0,0.00576113]
[1733012631498,0.00259627,96649.0,96648.0,0.00576113]
[1733012631737,0.00159627,96649.0,96648.0,0.00576113]
[1733012631973,0.00259627,96649.0,96648.0,0.00576113]
[1733012632196,0.00259627,96649.0,96648.0,0.00676113]
[1733012633311,0.00159627,96649.0,96648.0,0.00676113]
[1733012638677,0.00127205,96649.0,96648.0,0.00676113]
[1733012639906,0.00127205,96649.0,96648.0,0.05216113]
[1733012649493,0.00127205,96649.0,96648.0,0.00676113]
[1733012661044,0.0017268,96652.0,96649.0,0.06887787]
[1733012661498,0.0017268,96652.0,96650.0,0.00401757]
[1733012662346,0.0027268,96652.0,96650.0,0.00401757]
[1733012662787,0.0017268,96652.0,96649.0,0.06887787]
[1733012663254,0.0027268,96652.0,96649.0,0.06887787]
[1733012663466,0.0017268,96652.0,96649.0,0.06887787]
[1733012663672,0.0027268,96652.0,96649.0,0.06887787]
[1733012664114,0.2096548,96652.0,96649.0,0.06887787]
[1733012664356,0.2106548,96652.0,96650.0,0.00402253]
[1733012664579,0.00970148,96651.0,96649.0,0.06887787]
[1733012665912,0.00970145,96651.0,96649.0,0.06887787]
[1733012666991,0.01242825,96652.0,96649.0,0.06887787]
[1733012667673,0.0017268,96652.0,96649.0,0.06887787]
[1733012667895,0.001,96651.0,96649.0,0.06887787]
[1733012668971,0.0017268,96652.0,96649.0,0.06887787]